lending/lending_fUSD_20260124
["ID","MTS","AMOUNT","RATE_DAILY","PERIOD"]
[403297986,1769291442295,-510.15615014,0.00016438,2]
[403297988,1769291442304,-510.15615014,0.00016438,2]
[403297990,1769291442312,-510.15615014,0.00016438,2]
[403297992,1769291442321,-510.15615014,0.00016438,2]
[403297994,1769291442330,-510.15615014,0.00016438,2]
[403297996,1769291442339,-510.15615014,0.00016438,2]
[403297998,1769291442348,-510.15615014,0.00016438,2]
[403297999,1769291442357,-510.15615014,0.00016438,2]
[403298001,1769291442367,-510.15615014,0.00016438,2]
[403298004,1769291442376,-510.15615014,0.00016438,2]
[403298005,1769291442386,-510.15615014,0.00016438,2]
[403298007,1769291442395,-510.15615014,0.00016438,2]
[403298009,1769291442407,-510.15615014,0.00016438,2]
[403298012,1769291442417,-290.87116044,0.00016438,2]
[403298018,1769291442465,-219.2849897,0.00016438,2]
[403298020,1769291442474,-510.15615014,0.00016438,2]
[403298022,1769291442483,-510.15615014,0.00016438,2]
[403298024,1769291442491,-510.15615014,0.00016438,2]
[403298026,1769291442500,-510.15615014,0.00016438,2]
[403298028,1769291442509,-510.15615014,0.00016438,2]
[403298030,1769291442518,-510.15615014,0.00016438,2]
[403298032,1769291442527,-510.15615014,0.00016438,2]
[403298034,1769291442537,-510.15615014,0.00016438,2]
[403298036,1769291442546,-510.15615014,0.00016438,2]
[403298038,1769291442555,-510.15615014,0.00016438,2]
[403298040,1769291442563,-510.15615014,0.00016438,2]
[403298042,1769291442572,-510.15615014,0.00016438,2]
[403298044,1769291442581,-510.15615014,0.00016438,2]
[403298046,1769291442591,-510.15615014,0.00016438,2]
[403298048,1769291442600,-510.15615014,0.00016438,2]
[403298050,1769291442609,-510.15615014,0.00016438,2]
[403298052,1769291442618,-510.15615014,0.00016438,2]
[403298054,1769291442627,-510.15615014,0.00016438,2]
[403298056,1769291442636,-510.15615014,0.00016438,2]
[403298058,1769291442645,-510.15615014,0.00016438,2]
[403298060,1769291442654,-510.15615014,0.00016438,2]
[403298062,1769291442663,-510.15615014,0.00016438,2]
[403298064,1769291442671,-510.15615014,0.00016438,2]
[403298066,1769291442681,-1000.0,0.00016438,2]
[403298068,1769291442691,-436.0,0.0001645,2]
[403298070,1769291442699,-176.28333967,0.00016484,2]
[403298072,1769291442708,-475.0,0.000165,2]
[403298074,1769291442717,-1898.32153146,0.00016512,2]
[403298076,1769291442726,-436.0,0.00016516,2]
[403298078,1769291442735,-436.0,0.00016519,2]
[403298080,1769291442744,-207.33,0.00016539,2]
[403298082,1769291442754,-170.27698082,0.00016544,2]
[403298084,1769291442763,-436.0,0.00016548,2]
[403298086,1769291442772,-663.0,0.00016555,2]
[403298088,1769291442781,-151.0,0.00016581,2]
[403298090,1769291442790,-294.9531577,0.00016584,2]
[403298092,1769291442799,-27165.7847124,0.00016584,2]
[403298094,1769291442808,-4109.3681204,0.00016584,2]
[403298096,1769291442818,-155388.689095,0.00016584,2]
[403298098,1769291442827,-8154.3138786,0.00016584,2]
[403298100,1769291442837,-436.0,0.00016614,2]
[403298102,1769291442847,-436.0,0.00016626,2]
[403298104,1769291442855,-436.0,0.00016627,2]
[403298106,1769291442864,-1209.67593134,0.0001665,2]
[403298108,1769291442874,-436.0,0.00016667,2]
[403298110,1769291442883,-436.0,0.00016669,2]
[403298112,1769291442893,-436.0,0.00016671,2]
[403298114,1769291442902,-1898.32153146,0.00016685,2]
[403298116,1769291442911,-436.0,0.00016701,2]
[403298118,1769291442920,-1000.0,0.00016712,2]
[403298120,1769291442930,-436.0,0.0001674,2]
[403298122,1769291442939,-433.0,0.00016787,2]
[403298124,1769291442948,-436.0,0.00016788,2]
[403298126,1769291442958,-475.0,0.00016791,2]
[403298128,1769291442967,-436.0,0.00016813,2]
[403298130,1769291442976,-1898.32153146,0.00016859,2]
[403298132,1769291442985,-500.0,0.00016883,2]
[403298134,1769291442994,-151.0,0.000169,2]
[403298136,1769291443003,-151.0,0.000169,2]
[403298139,1769291443013,-151.0,0.000169,2]
[403298140,1769291443023,-151.0,0.000169,2]
[403298143,1769291443032,-151.0,0.000169,2]
[403298145,1769291443041,-151.0,0.000169,2]
[403298146,1769291443050,-151.0,0.000169,2]
[403298148,1769291443059,-151.0,0.000169,2]
[403298151,1769291443068,-151.0,0.000169,2]
[403298152,1769291443077,-151.0,0.000169,2]
[403298155,1769291443087,-151.0,0.000169,2]
[403298156,1769291443100,-151.0,0.000169,2]
[403298159,1769291443109,-151.0,0.000169,2]
[403298161,1769291443118,-151.0,0.000169,2]
[403298162,1769291443127,-151.0,0.000169,2]
[403298165,1769291443137,-151.0,0.000169,2]
[403298168,1769291443146,-151.0,0.000169,2]
[403298170,1769291443155,-151.0,0.000169,2]
[403298174,1769291443165,-151.0,0.000169,2]
[403298177,1769291443175,-151.0,0.000169,2]
[403298179,1769291443183,-151.0,0.000169,2]
[403298180,1769291443192,-7004.47763527,0.000169,2]
[403298182,1769291443201,-1209.67593134,0.00016963,2]
[403298184,1769291443210,-1000.0,0.00016986,2]
[403298186,1769291443219,-170.27698082,0.00016996,2]
[403298188,1769291443228,-250.0,0.00017,2]
[403298190,1769291443237,-587.0,0.00017009,2]
[403298192,1769291443246,-1898.32153146,0.00017032,2]
[403298194,1769291443254,-151.0,0.00017099,2]
[403298196,1769291443263,-151.0,0.00017099,2]
[403298198,1769291443272,-151.0,0.00017099,2]
[403298200,1769291443281,-151.0,0.00017099,2]
[403298202,1769291443290,-151.0,0.00017099,2]
[403298204,1769291443300,-151.0,0.00017099,2]
[403298206,1769291443309,-151.0,0.00017099,2]
[403298208,1769291443318,-151.0,0.00017099,2]
[403298210,1769291443327,-151.0,0.00017099,2]
[403298212,1769291443335,-151.0,0.00017099,2]
[403298214,1769291443344,-151.0,0.00017099,2]
[403298216,1769291443353,-1898.32153146,0.00017206,2]
[403298219,1769291443362,-1000.0,0.0001726,2]
[403298220,1769291443371,-1209.67593134,0.00017275,2]
[403298222,1769291443380,-1371.95,0.00017315,2]
[403298224,1769291443389,-167.31,0.00017348,2]
[403298226,1769291443399,-1898.32153146,0.00017379,2]
[403298228,1769291443408,-270.16,0.00017412,2]
[403298230,1769291443417,-152.0,0.00017434,4]
[403298232,1769291443426,-170.27698082,0.00017448,2]
[403298234,1769291443434,-2333.0,0.00017533,2]
[403298236,1769291443443,-1000.0,0.00017534,2]
[403298238,1769291443452,-1898.32153146,0.00017553,2]
[403298240,1769291443461,-1209.67593134,0.00017588,2]
[403298242,1769291443470,-277.23,0.000176,2]
[403298244,1769291443479,-150.0,0.00017699,2]
[403298246,1769291443488,-150.0,0.00017699,2]
[403298248,1769291443496,-150.0,0.00017699,2]
[403298250,1769291443505,-150.0,0.00017699,2]
[403298252,1769291443514,-150.0,0.00017699,2]
[403298254,1769291443523,-150.0,0.00017699,2]
[403298256,1769291443532,-150.0,0.00017699,2]
[403298258,1769291443540,-150.0,0.00017699,2]
[403298260,1769291443550,-150.0,0.00017699,2]
[403298262,1769291443558,-150.0,0.00017699,2]
[403298264,1769291443567,-150.0,0.00017699,2]
[403298266,1769291443576,-150.0,0.00017699,2]
[403298268,1769291443585,-150.09674161,0.00017699,2]
[403298270,1769291443594,-150.0,0.00017699,2]
[403298273,1769291443604,-150.0,0.00017699,2]
[403298275,1769291443614,-150.0,0.00017699,2]
[403298277,1769291443623,-150.0,0.00017699,2]
[403298279,1769291443632,-151.0211484,0.00017699,2]
[403298281,1769291443641,-150.0,0.00017699,2]
[403298283,1769291443650,-150.0,0.00017699,2]
[403298285,1769291443660,-168.0,0.00017718,2]
[403298287,1769291443668,-1898.32153146,0.00017726,2]
[403298289,1769291443677,-150.0,0.00017754,2]
[403298291,1769291443686,-150.0,0.00017754,2]
[403298293,1769291443695,-150.0,0.00017754,2]
[403298295,1769291443706,-150.0,0.00017754,2]
[403298297,1769291443715,-150.0,0.00017754,2]
[403298299,1769291443725,-150.0,0.00017754,2]
[403298301,1769291443735,-150.0,0.00017754,2]
[403298303,1769291443743,-150.0,0.00017754,2]
[403298305,1769291443752,-150.0,0.00017754,2]
[403298307,1769291443761,-150.0,0.00017754,2]
[403298309,1769291443770,-150.0,0.00017754,2]
[403298311,1769291443779,-1807.92,0.00017754,2]
[403298313,1769291443789,-179.143,0.00017754,2]
[403298315,1769291443798,-1000.0,0.00017808,2]
[403298317,1769291443807,-200.0,0.00017809,2]
[403298319,1769291443816,-200.0,0.00017809,2]
[403298321,1769291443826,-200.0,0.00017809,2]
[403298323,1769291443835,-200.0,0.00017809,2]
[403298325,1769291443844,-200.0,0.00017809,2]
[403298327,1769291443853,-200.0,0.00017809,2]
[403298329,1769291443862,-200.0,0.00017809,2]
[403298331,1769291443870,-200.0,0.00017809,2]
[403298333,1769291443880,-200.0,0.00017809,2]
[403298335,1769291443889,-200.0,0.00017809,2]
[403298337,1769291443898,-200.0,0.00017809,2]
[403298339,1769291443909,-1948.31179,0.0001782,2]
[403298341,1769291443918,-1948.3118,0.0001782,2]
[403298343,1769291443927,-1948.3118,0.0001782,2]
[403298345,1769291443936,-1948.3118,0.0001782,2]
[403298347,1769291443945,-1333.0,0.0001789,2]
[403298349,1769291443954,-1408.0,0.0001789,2]
[403298351,1769291443963,-615.0,0.0001789,2]
[403298353,1769291443972,-916.0,0.0001789,2]
[403298355,1769291443982,-184.0,0.0001789,2]
[403298357,1769291443991,-1269.0,0.0001789,2]
[403298359,1769291444000,-2442.0,0.0001789,2]
[403298361,1769291444010,-6568.0,0.0001789,2]
[403298363,1769291444019,-4830.0,0.0001789,2]
[403298365,1769291444028,-182.94414284,0.000179,2]
[403298367,1769291444037,-170.27698082,0.000179,2]
[403298369,1769291444047,-1209.67593134,0.000179,2]
[403298371,1769291444056,-176.28333966,0.000179,2]
[403298373,1769291444066,-1096.49184667,0.000179,2]
[403298375,1769291444075,-1898.32153146,0.000179,2]
[403298377,1769291444084,-827.46892711,0.000179,2]
[403298379,1769291444097,-168.0,0.00017917,2]
[403298381,1769291444107,-168.0,0.00017924,2]
[403298384,1769291444116,-38477.2940577,0.00017924,2]
[403298386,1769291444125,-150.0,0.00017973,2]
[403298388,1769291444136,-2583.0,0.00017985,2]
[403298390,1769291444146,-1008.959,0.00017999,2]
[403298391,1769291444155,-300.0,0.00017999,2]
[403298394,1769291444166,-300.0,0.00017999,2]
[403298395,1769291444175,-300.0,0.00017999,2]
[403298397,1769291444184,-300.0,0.00017999,2]
[403298399,1769291444193,-300.0,0.00017999,2]
[403298402,1769291444202,-300.0,0.00017999,2]
[403298404,1769291444211,-300.0,0.00017999,2]
[403298405,1769291444220,-300.0,0.00017999,2]
[403298407,1769291444229,-300.0,0.00017999,2]
[403298410,1769291444239,-2583508.69561072,0.00018,2]
[403298412,1769291444252,-596.298,0.00018,2]
[403298414,1769291444263,-495.927763,0.00018,2]
[403298623,1769291447524,-2.16725984,0.00018,2]
[403298624,1769291447539,-345.89286259,0.00018,2]
[403298625,1769291447550,-1604.52811268,0.00018,2]
[403298626,1769291447562,-647.87718311,0.00018,2]
[403298627,1769291447628,-294.01433333,0.00018,2]
[403298628,1769291447639,-7653.71011226,0.00018,2]
[403298629,1769291447712,-158116.93311745,0.00018,2]
[403298630,1769291447723,-154329.37247007,0.00018,2]
[403298631,1769291447735,-76461.2109299,0.00018,2]
[403298632,1769291447747,-643.80513405,0.00018,2]
[403298633,1769291448105,-1404.26040629,0.00018,2]
[403298634,1769291448117,-1839.87792411,0.00018,2]
[403298635,1769291583292,459.63746506,0.000122,2]
[403298636,1769291585380,500.0,0.000122,2]
[403298650,1769291767224,500.0,0.000122,2]
[403298667,1769292347121,-274.0,0.00014986,2]
[403298668,1769292347141,-53.1856306,0.00015037,2]
[403298669,1769292433133,-141.8143694,0.00015037,2]
[403298670,1769292433153,-300.0,0.00015087,2]
[403298671,1769292433173,-8.21987957,0.00015087,2]
[403298750,1769292631372,-300.0,0.00015087,2]
[403298751,1769292631382,-1192.0,0.00015087,2]
[403298752,1769292631391,-300.0,0.00015087,2]
[403298753,1769292631401,-275.0,0.00015087,2]
[403298754,1769292631411,-284.4823,0.00015088,2]
[403298755,1769292631420,-2304.36275265,0.00015088,2]
[403298756,1769292631432,-565.41868301,0.00015088,2]
[403298757,1769292631443,-351.765,0.00015088,2]
[403298758,1769292631455,-299.86,0.00015088,2]
[403298759,1769292631464,-1287.22796434,0.00015088,2]
[403298760,1769292631472,-300.0,0.00015186,2]
[403298761,1769292631482,-35.88883222,0.00015186,2]
[403298762,1769292631537,-464.11116778,0.00015186,2]
[403298763,1769292631547,-490.99345455,0.00015186,2]
[403298764,1769292631556,-500.0,0.00015187,2]
[403298765,1769292631567,-500.0,0.00015187,2]
[403298766,1769292631577,-500.0,0.00015187,2]
[403298767,1769292631587,-348.44,0.00015187,2]
[403298768,1769292631596,-500.0,0.00015187,2]
[403298770,1769292631607,-500.0,0.00015187,2]
[403298772,1769292631616,-500.0,0.00015187,2]
[403298774,1769292631626,-500.0,0.00015187,2]
[403298776,1769292631636,-601.02997992,0.00015187,2]
[403298778,1769292631645,-500.0,0.00015187,2]
[403298780,1769292631655,-500.0,0.00015187,2]
[403298782,1769292631664,-500.0,0.00015187,2]
[403298784,1769292631674,-306.42539775,0.00015187,2]
[403298785,1769292631685,-193.57460242,0.00015187,2]
[403298786,1769292631695,-500.0,0.00015187,2]
[403298788,1769292631704,-500.0,0.00015187,2]
[403298790,1769292631713,-500.0,0.00015187,2]
[403298792,1769292631726,-151.0,0.00015712,2]
[403298794,1769292631735,-151.0,0.0001601,2]
[403298796,1769292631745,-500.0,0.00016152,2]
[403298797,1769292631755,-850.58,0.00016225,2]
[403298798,1769292631764,-5958.25,0.00016299,2]
[403298799,1769292631774,-262.0,0.0001631,2]
[403298800,1769292631784,-886.13429449,0.00016369,2]
[403298801,1769292631796,-330.74439359,0.00016369,2]
[403298802,1769292631807,-1575.76131192,0.00016369,2]
[403298803,1769292631817,-319.52,0.00016428,2]
[403298804,1769292631827,-500.0,0.00016428,2]
[403298805,1769292631836,-500.0,0.00016428,2]
[403298806,1769292631846,-500.0,0.00016428,2]
[403298807,1769292631855,-500.0,0.00016428,2]
[403298808,1769292631865,-500.0,0.00016428,2]
[403298809,1769292631874,-500.0,0.00016428,2]
[403298810,1769292631884,-500.0,0.00016428,2]
[403298811,1769292631894,-151.0,0.00016428,2]
[403298812,1769292631903,-212.1033362,0.00016428,2]
[403298813,1769292631913,-151.0,0.00016428,2]
[403298814,1769292631923,-151.0,0.00016428,2]
[403298815,1769292631933,-151.0,0.00016428,2]
[403298816,1769292631942,-151.0,0.00016428,2]
[403298817,1769292631952,-151.0,0.00016428,2]
[403298818,1769292631962,-151.0,0.00016428,2]
[403298819,1769292631972,-151.0,0.00016428,2]
[403298820,1769292631982,-151.0,0.00016428,2]
[403298821,1769292631992,-151.0,0.00016428,2]
[403298822,1769292632001,-200.0,0.00016428,2]
[403298823,1769292632011,-186.33234919,0.00016428,2]
[403298824,1769292632020,-200.0,0.00016428,2]
[403298825,1769292632030,-200.0,0.00016428,2]
[403298826,1769292632041,-151.0,0.00016428,2]
[403298827,1769292632050,-151.0,0.00016428,2]
[403298828,1769292632060,-151.0,0.00016428,2]
[403298829,1769292632069,-151.0,0.00016428,2]
[403298830,1769292632079,-151.0,0.00016428,2]
[403298831,1769292632088,-151.0,0.00016428,2]
[403298832,1769292632098,-151.0,0.00016428,2]
[403298833,1769292632108,-123.31118364,0.00016428,2]
[403298834,1769292632124,-27.68881636,0.00016428,2]
[403298835,1769292632134,-151.0,0.00016428,2]
[403298836,1769292632144,-151.0,0.00016428,2]
[403298837,1769292632154,-151.0,0.00016428,2]
[403298838,1769292632164,-292.03635113,0.00016437,2]
[403298839,1769292632174,-237.33019326,0.00016437,2]
[403298840,1769292632184,-500.0,0.00016437,2]
[403298841,1769292632194,-195.29797609,0.00016437,2]
[403298842,1769292632204,-173.11951536,0.00016437,2]
[403298843,1769292632214,-312.47785602,0.00016437,2]
[403298844,1769292632227,-187.52214398,0.00016437,2]
[403298845,1769292632237,-444.21323495,0.00016438,2]
[403298846,1769292632249,-55.78676505,0.00016438,2]
[403298847,1769292632258,-217.06505901,0.00016438,2]
[403298848,1769292632270,-282.93494099,0.00016438,2]
[403298849,1769292632279,-500.0,0.00016438,2]
[403298850,1769292632289,-500.0,0.00016438,2]
[403298851,1769292632299,-500.0,0.00016438,2]
[403298852,1769292632308,-500.0,0.00016438,2]
[403298853,1769292632318,-500.0,0.00016438,2]
[403298854,1769292632327,-500.0,0.00016438,2]
[403298855,1769292632337,-500.0,0.00016438,2]
[403298856,1769292632346,-111.18277351,0.00016438,2]
[403298857,1769292632358,-388.81722649,0.00016438,2]
[403298858,1769292632367,-215.99637107,0.00016438,2]
[403298861,1769292637378,-284.00362893,0.00016438,2]
[403298862,1769292637388,-308.46924016,0.00016438,2]
[403298863,1769292637399,-191.53075984,0.00016438,2]
[403298864,1769292637408,-500.0,0.00016438,2]
[403298865,1769292637417,-500.0,0.00016438,2]
[403298866,1769292637427,-259.54483168,0.00016438,2]
[403298867,1769292637436,-500.0,0.00016438,2]
[403298868,1769292637445,-500.0,0.00016438,2]
[403298869,1769292637454,-500.0,0.00016438,2]
[403298870,1769292637463,-500.0,0.00016438,2]
[403298871,1769292637473,-500.0,0.00016438,2]
[403298872,1769292637481,-500.0,0.00016438,2]
[403298873,1769292637491,-500.0,0.00016438,2]
[403298874,1769292637500,-500.0,0.00016438,2]
[403298875,1769292637509,-500.0,0.00016438,2]
[403298876,1769292637518,-500.0,0.00016438,2]
[403298877,1769292637527,-500.0,0.00016438,2]
[403298878,1769292637536,-500.0,0.00016438,2]
[403298879,1769292637546,-500.0,0.00016438,2]
[403298880,1769292637555,-500.0,0.00016438,2]
[403298881,1769292637567,-500.0,0.00016438,2]
[403298882,1769292637577,-500.0,0.00016438,2]
[403298883,1769292637586,-500.0,0.00016438,2]
[403298884,1769292637595,-500.0,0.00016438,2]
[403298885,1769292637606,-500.0,0.00016438,2]
[403298886,1769292637615,-500.0,0.00016438,2]
[403298887,1769292637625,-498.08501788,0.00016438,2]
[403299119,1769292639879,-1.91498212,0.00016438,2]
[403299121,1769292639889,-500.0,0.00016438,2]
[403299123,1769292639898,-500.0,0.00016438,2]
[403299125,1769292639907,-500.0,0.00016438,2]
[403299127,1769292639916,-150.0,0.00016438,2]
[403299129,1769292639925,-500.0,0.00016438,2]
[403299131,1769292639934,-500.0,0.00016438,2]
[403299133,1769292639943,-500.0,0.00016438,2]
[403299135,1769292639952,-500.0,0.00016438,2]
[403299137,1769292639962,-500.0,0.00016438,2]
[403299139,1769292639971,-150.0,0.00016438,2]
[403299141,1769292639980,-500.0,0.00016438,2]
[403299143,1769292639990,-874.0,0.00016438,2]
[403299144,1769292639999,-151.0,0.00016438,2]
[403299146,1769292640008,-3240.0,0.00016451,2]
[403299148,1769292640016,-195.0,0.00016485,2]
[403299150,1769292640025,-200.0,0.00016485,2]
[403299152,1769292640035,-200.0,0.00016485,2]
[403299154,1769292640044,-690.49961014,0.00016485,2]
[403299156,1769292640054,-420.0,0.0001651,2]
[403299158,1769292640062,-2500.0,0.0001654,2]
[403299160,1769292640071,-201.18870474,0.0001654,2]
[403299162,1769292640080,-195.0,0.0001654,2]
[403299164,1769292640090,-638.16219024,0.00016596,2]
[403299166,1769292640099,-1221.1636,0.00016687,2]
[403299168,1769292640108,-319.52,0.00016702,2]
[403299170,1769292640118,-150.0,0.00016806,2]
[403299172,1769292640128,-757.75,0.00016887,2]
[403299174,1769292640137,-9719.3691885,0.000169,2]
[403299176,1769292640146,-319.52,0.00016976,2]
[403299178,1769292640155,-200.0,0.00016976,2]
[403299180,1769292640164,-250.0,0.00017,2]
[403299182,1769292640173,-854.2589148,0.00017099,2]
[403299184,1769292640183,-250.0,0.00017099,2]
[403299187,1769292640192,-250.0,0.00017099,2]
[403299189,1769292640201,-174.61919141,0.00017099,2]
[403299190,1769292640211,-250.0,0.00017099,2]
[403299192,1769292640220,-250.0,0.00017099,2]
[403299195,1769292640229,-250.0,0.00017099,2]
[403299196,1769292640239,-250.0,0.00017099,2]
[403299198,1769292640248,-250.0,0.00017099,2]
[403299201,1769292640257,-5432.0,0.00017099,2]
[403299202,1769292640266,-250.0,0.00017099,2]
[403299205,1769292640275,-1503.0,0.00017099,2]
[403299207,1769292640284,-250.0,0.00017099,2]
[403299208,1769292640294,-250.0,0.00017099,2]
[403299209,1769292640303,-250.0,0.00017099,2]
[403299210,1769292640311,-500.0,0.00017099,2]
[403299211,1769292640320,-500.0,0.00017099,2]
[403299212,1769292640330,-500.0,0.00017099,2]
[403299213,1769292640339,-500.0,0.00017099,2]
[403299214,1769292640348,-500.0,0.00017099,2]
[403299215,1769292640357,-500.0,0.00017099,2]
[403299236,1769292640646,-500.0,0.00017099,2]
[403299240,1769292640680,-500.0,0.00017099,2]
[403299242,1769292640689,-500.0,0.00017099,2]
[403299244,1769292640699,-500.0,0.00017099,2]
[403299246,1769292640708,-500.0,0.00017099,2]
[403299248,1769292640717,-500.0,0.00017099,2]
[403299250,1769292640726,-500.0,0.00017099,2]
[403299252,1769292640735,-500.0,0.00017099,2]
[403299254,1769292640744,-500.0,0.00017099,2]
[403299256,1769292640753,-500.0,0.00017099,2]
[403299258,1769292640763,-500.0,0.00017099,2]
[403299260,1769292640772,-278.00631978,0.00017099,2]
[403299262,1769292640781,-500.0,0.00017099,2]
[403299264,1769292640790,-322.6107,0.00017099,2]
[403299266,1769292640799,-500.0,0.00017099,2]
[403299268,1769292640809,-151.0,0.00017099,2]
[403299270,1769292640818,-500.0,0.00017099,2]
[403299272,1769292640827,-500.0,0.00017099,2]
[403299274,1769292640836,-500.0,0.00017099,2]
[403299276,1769292640845,-500.0,0.00017099,2]
[403299278,1769292640854,-250.0,0.00017099,2]
[403299280,1769292640863,-500.0,0.00017099,2]
[403299282,1769292640872,-250.0,0.00017099,2]
[403299284,1769292640881,-250.0,0.00017099,2]
[403299286,1769292640890,-250.0,0.00017099,2]
[403299288,1769292640899,-250.0,0.00017099,2]
[403299290,1769292640908,-250.0,0.00017099,2]
[403299292,1769292640917,-151.0,0.00017099,2]
[403299294,1769292640926,-151.0,0.00017099,2]
[403299296,1769292640936,-250.0,0.00017099,2]
[403299298,1769292640945,-293.01774456,0.00017099,2]
[403299300,1769292640955,-151.0,0.00017099,2]
[403299302,1769292640963,-151.0,0.00017099,2]
[403299304,1769292640973,-151.0,0.00017099,2]
[403299306,1769292640982,-151.0,0.00017099,2]
[403299308,1769292640992,-151.0,0.00017099,2]
[403299310,1769292641001,-151.0,0.00017099,2]
[403299312,1769292641010,-151.0,0.00017099,2]
[403299313,1769292641019,-250.0,0.00017099,2]
[403299316,1769292641029,-151.0,0.00017099,2]
[403299318,1769292641039,-250.0,0.00017099,2]
[403299320,1769292641049,-151.0,0.00017099,2]
[403299322,1769292641059,-232.4016211,0.00017099,2]
[403299323,1769292641073,-165.47,0.00017109,2]
[403299325,1769292641082,-319.52,0.0001725,2]
[403299327,1769292641091,-1000.0,0.0001726,2]
[403299329,1769292641102,-1920.147,0.00017434,2]
[403299331,1769292641113,-199.86,0.00017434,2]
[403299333,1769292641126,-757.75,0.00017521,2]
[403299336,1769292641142,-319.52,0.00017524,2]
[403299337,1769292641152,-1000.0,0.00017534,2]
[403299340,1769292641161,-189.41320168,0.00017608,2]
[403299342,1769292641171,-200.94093909,0.00017647,2]
[403299343,1769292641180,-699.71,0.00017668,2]
[403299346,1769292641190,-612.72,0.00017668,2]
[403299347,1769292641199,-612.72,0.00017668,2]
[403299350,1769292641208,-612.72,0.00017668,2]
[403299351,1769292641217,-612.72,0.00017668,2]
[403299353,1769292641227,-612.72,0.00017668,2]
[403299355,1769292641236,-612.72,0.00017668,2]
[403299357,1769292641245,-612.72,0.00017668,2]
[403299359,1769292641254,-165.47,0.00017674,2]
[403299361,1769292641263,-390.0,0.00017676,2]
[403299363,1769292641272,-150.0,0.00017699,2]
[403299365,1769292641287,-150.0,0.00017699,2]
[403299367,1769292641304,-150.0,0.00017699,2]
[403299369,1769292641314,-150.0,0.00017699,2]
[403299371,1769292641323,-150.0,0.00017699,2]
[403299373,1769292641333,-150.0,0.00017699,2]
[403299375,1769292641342,-150.0,0.00017699,2]
[403299377,1769292641351,-916.0,0.00017704,2]
[403299379,1769292641360,-2442.0,0.00017709,2]
[403299381,1769292641370,-567.0,0.00017709,2]
[403299383,1769292641379,-4830.0,0.00017709,2]
[403299385,1769292641388,-274.0,0.00017754,2]
[403299387,1769292641397,-150.0,0.00017754,2]
[403299389,1769292641407,-150.0,0.00017754,2]
[403299391,1769292641416,-150.0,0.00017754,2]
[403299393,1769292641425,-150.0,0.00017754,2]
[403299395,1769292641434,-2500.0,0.000178,2]
[403299397,1769292641443,-176.74378963,0.000178,2]
[403299399,1769292641452,-1000.0,0.00017808,2]
[403299402,1769292641465,-200.0,0.00017809,2]
[403299403,1769292641474,-200.0,0.00017809,2]
[403299405,1769292641483,-200.0,0.00017809,2]
[403299408,1769292641493,-200.0,0.00017809,2]
[403299409,1769292641502,-649.43726,0.0001782,2]
[403299411,1769292641511,-649.43727,0.0001782,2]
[403299414,1769292641521,-318.3,0.0001789,2]
[403299416,1769292641531,-318.3,0.0001789,2]
[403299418,1769292641540,-318.3,0.0001789,2]
[403299420,1769292641550,-318.3,0.0001789,2]
[403299421,1769292641560,-318.3,0.0001789,2]
[403299424,1769292641574,-502.72610328,0.00017899,2]